fUSD/lending_fUSD_20251129
["ID","MTS","AMOUNT","RATE_DAILY","PERIOD"]
[395087092,1764415122285,-321.2659374,0.00014949,2]
[395087093,1764415129865,-178.7340626,0.00014949,2]
[395087094,1764415129888,-136.70349485,0.00014949,2]
[395087095,1764415130803,-363.29650515,0.00014949,2]
[395087096,1764415130831,-500.0,0.00014949,2]
[395087097,1764415161261,504.62058099,0.00014847,2]
[395087098,1764415386523,7768.79640871,0.0001487,2]
[395087099,1764415386544,9555.54956499,0.0001487,2]
[395087100,1764415393119,-182.63,0.00014974,2]
[395087101,1764415440369,171.0,6.8e-07,2]
[395087102,1764415464163,-255.50665416,0.00014918,2]
[395087103,1764415498281,7995.0,0.000149,2]
[395087104,1764415590748,-195.0,0.00014955,2]
[395087105,1764415598829,244.493345,0.0001488,2]
[395087106,1764415605751,-212.0,0.00014993,2]
[395087111,1764415639351,-4477.01,0.00015,3]
[395087112,1764415643572,-1045.99,0.00015,3]
[395087113,1764415652172,-195.0,0.0001502,2]
[395087114,1764415708598,532.59359614,0.00014847,2]
[395087115,1764415733708,169.1842498,0.00014929,2]
[395087149,1764415780221,5523.0,0.00015,5]
[395087170,1764415833186,-173.61841926,0.00015039,2]
[395087171,1764415833195,-213.0,0.00015039,2]
[395087172,1764415833205,-137.83531123,0.00015097,2]
[395087173,1764415833408,-57.16468877,0.00015097,2]
[395087174,1764415833417,-3157.58,0.00015118,2]
[395087175,1764415833427,-300.0,0.00015127,2]
[395087176,1764415833436,-983.57515488,0.00015127,2]
[395087177,1764415833447,-216.42484512,0.00015127,2]
[395087178,1764415833456,-300.0,0.00015127,2]
[395087179,1764415833467,-269.0,0.00015127,2]
[395087180,1764415833476,-86.5554107,0.00015128,2]
[395087181,1764415833487,-824.45059083,0.00015128,2]
[395087182,1764415833498,-7631.69981,0.00015128,2]
[395087238,1764415841794,-769.494998,0.00015128,2]
[395087239,1764415842613,-1.7e-07,0.00015128,2]
[395087240,1764415845356,-340.981756,0.00015128,2]
[395087261,1764415848232,-275.45000278,0.00015128,2]
[395087262,1764415921484,500.0,0.00014847,2]
[395087263,1764415921625,500.0,0.00014847,2]
[395087264,1764415921715,500.0,0.00014847,2]
[395087265,1764415922988,-500.0,0.0001502,2]
[395087271,1764416048745,600.9,7.459e-05,2]
[395087272,1764416049335,600.9,7.852e-05,2]
[395087273,1764416049513,600.9,8.244e-05,2]
[395087274,1764416049643,82.53215406,8.637e-05,2]
[395087275,1764416049669,518.36784594,8.637e-05,2]
[395087276,1764416049805,600.9,9.029e-05,2]
[395087277,1764416050038,600.9,9.422e-05,2]
[395087278,1764416050130,600.9,9.815e-05,2]
[395087279,1764416050331,600.9,0.00010207,2]
[395087280,1764416050494,600.9,0.000106,2]
[395087281,1764416051045,600.9,0.00010992,2]
[395087282,1764416051456,600.9,0.00011385,2]
[395087283,1764416051923,600.9,0.00011777,2]
[395087284,1764416052054,600.9,0.0001217,2]
[395087285,1764416052282,600.9,0.00012563,2]
[395087286,1764416052408,600.9,0.00012955,2]
[395087287,1764416052550,600.9,0.00013348,2]
[395087288,1764416052705,600.9,0.0001374,2]
[395087289,1764416052888,600.9,0.00014133,2]
[395087290,1764416053111,600.9,0.00014526,2]
[395087291,1764416053310,468.14215406,0.00014918,2]
[395087292,1764416053844,-132.75784594,0.00014918,2]
[395087294,1764416291409,187.45353052,0.00014954,2]
[395087295,1764416380133,166.66,0.00013991,2]
[395087296,1764416380357,166.66,0.00014286,2]
[395087297,1764416380569,166.66,0.0001458,2]
[395087298,1764416380794,166.66,0.00014875,2]
[395087299,1764416397496,5522.0,0.000139,5]
[395087300,1764416455476,1235.16,0.00014667,2]
[395087304,1764416632773,187.45353051,0.00014934,2]
[395087305,1764416633932,150.0,0.0001494,2]
[395087306,1764416640711,-222.65612674,0.00014944,2]
[395087307,1764416657165,-4023.06694,0.0001498,2]
[395087308,1764416660391,-1953.87612,0.0001498,2]
[395087309,1764416660421,-195.0,0.00015007,2]
[395087310,1764416708679,500.0,0.00014763,2]
[395087316,1764416766663,5202.25776,0.00014758,2]
[395087317,1764416767450,-298.34782687,0.00014758,2]
[395087318,1764416772584,-383.47885097,0.00014758,2]
[395087319,1764416777790,-156.39171891,0.00014758,2]
[395087320,1764416782375,-238.71243769,0.00014758,2]
[395087321,1764416786865,-195.0,0.00014758,2]
[395087322,1764416791798,-225.56507546,0.00014758,2]
[395087323,1764416793906,157.05,0.00011803,2]
[395087324,1764416794859,-324.43492454,0.00014758,2]
[395087325,1764416799874,-195.0,0.00014758,2]
[395087326,1764416802223,-1104.46436886,0.00014758,2]
[395087327,1764416802269,-10000.01,0.00014758,2]
[395087328,1764416802362,-8683.2570367,0.00014758,2]
[395087341,1764416919068,500.0,0.00014944,2]
[395087352,1764416951016,500.0,0.00014934,2]
[395087388,1764416959611,250.0,0.00014316,2]
[395087554,1764416977750,10000.01,0.00014931,2]
[395087555,1764416977774,10000.01,0.00014931,2]
[395087556,1764416977797,10000.01,0.00014931,2]
[395087557,1764416977819,10000.01,0.00014931,2]
[395087558,1764416977841,10000.01,0.00014931,2]
[395087559,1764416977865,10000.01,0.00014931,2]
[395087560,1764416977888,9694.7862065,0.00014931,2]
[395087561,1764416979879,1000.0,0.00025,120]
[395087564,1764417010761,7221.962684,7.945e-05,2]
[395087565,1764417024977,-1207.08145,0.0001498,2]
[395087584,1764417038337,-300.0,0.00015034,2]
[395087585,1764417038347,-250.0,0.00015034,2]
[395087586,1764417038357,-195.0,0.00015034,2]
[395087587,1764417038367,-213.0,0.00015034,2]
[395087588,1764417038376,-151.0,0.00015045,2]
[395087589,1764417038386,-405.57601841,0.00015053,2]
[395087590,1764417038397,-6147.90757,0.00015054,2]
[395087591,1764417038407,-7233.83632271,0.00015054,2]
[395087592,1764417038461,-346.9846993,0.00015054,2]
[395087593,1764417038472,-413.55879027,0.00015054,2]
[395087594,1764417038511,-803.3053275,0.00015054,2]
[395087595,1764417038523,-3075.85168643,0.00015054,2]
[395087596,1764417038534,-11844.00955919,0.00015054,2]
[395087597,1764417038543,-4394.1101221,0.00015054,2]
[395087598,1764417038553,-898.2555773,0.00015054,2]
[395087599,1764417038563,-6628.23732957,0.0001507,2]
[395087600,1764417038572,-8902.54733245,0.0001507,2]
[395087601,1764417038582,-4622.86743152,0.00015128,2]
[395087602,1764417038592,-200.0,0.00015128,2]
[395087603,1764417038602,-1249.0,0.00015128,2]
[395087605,1764417038611,-1249.0,0.00015128,2]
[395087607,1764417038621,-1249.0,0.00015128,2]
[395087608,1764417038630,-1249.0,0.00015128,2]
[395087609,1764417038639,-1249.0,0.00015128,2]
[395087610,1764417038649,-200.0,0.00015128,2]
[395087611,1764417038659,-2751.0,0.0001514,2]
[395087612,1764417038668,-2717.85,0.0001514,2]
[395087613,1764417038678,-326.06844701,0.00015163,2]
[395087614,1764417038688,-500.0,0.00015163,2]
[395087615,1764417038698,-500.0,0.00015163,2]
[395087616,1764417038707,-199.85406611,0.00015163,2]
[395087617,1764417038717,-366.38360305,0.00015163,2]
[395087618,1764417038727,-55598.32317275,0.00015164,2]
[395087619,1764417038739,-9029.60934059,0.00015164,2]
[395087621,1764417038843,-1765.22784662,0.00015164,2]
[395087623,1764417038854,-814.47785732,0.00015164,2]
[395087624,1764417038915,-3555.54575348,0.00015164,2]
[395087625,1764417038927,-295.99999997,0.00015164,2]
[395087626,1764417038938,-856.63891136,0.00015164,2]
[395087627,1764417038954,-13738.8083,0.00015164,2]
[395087628,1764417038985,-471.84604647,0.00015164,2]
[395087643,1764417046121,-16562.5,0.00015164,2]
[395087644,1764417046132,-21173.53232965,0.00015164,2]
[395087645,1764417046310,-612.70272453,0.00015164,2]
[395087646,1764417046322,-965.39130196,0.00015164,2]
[395087647,1764417048163,-273.03862863,0.00015164,2]
[395087648,1764417048175,-995.0210025,0.00015164,2]
[395087649,1764417048187,-960.55125001,0.00015164,2]
[395087650,1764417048253,-4621.47916256,0.00015164,2]
[395087651,1764417048264,-16182.81015374,0.00015164,2]
[395087652,1764417048309,-5032.40730653,0.00015164,2]
[395087653,1764417048811,-1093.5188701,0.00015164,2]
[395087654,1764417048822,-15173.2785,0.00015164,2]
[395087655,1764417052904,-358.28916145,0.00015164,2]
[395087656,1764417053312,-400.0,0.00015164,2]
[395087657,1764417053439,-1831.96,0.00015164,2]
[395087658,1764417053451,-292946.46356571,0.00015164,2]
[395087659,1764417053495,-180128.84650698,0.00015164,2]
[395087661,1764417077833,7585.8471,7.945e-05,2]
[395087662,1764417077854,130.015694,7.945e-05,2]
[395087663,1764417082122,250.0,8.74e-05,2]
[395087664,1764417088069,1000.0,0.00025,120]
[395087665,1764417120916,500.0,0.00014934,2]
[395087667,1764417200968,388.0,0.00025,120]
[395087668,1764417286843,500.0,0.00014964,2]
[395087669,1764417349315,200.0,0.00014312,2]
[395087670,1764417393439,-4975.27821,0.0001501,2]
[395087671,1764417393569,-49.45358,0.0001501,2]
[395087672,1764417396519,267.93,0.00014266,2]
[395087675,1764417634412,193.63994782,0.0001497,2]
[395087676,1764417659671,-193.63994782,0.00015017,2]
[395087677,1764417662737,272.9,0.00019178,30]
[395087678,1764417726990,1500.0,0.0001422,2]
[395087679,1764417756638,1005.90121,0.0001501,2]
[395087680,1764417859203,250.0,0.00014871,2]
[395087681,1764417859374,2751.0,0.00014218,2]
[395087682,1764417869002,195.0,0.00014544,2]
[395087683,1764417869420,195.0,0.00014837,2]
[395087684,1764417968256,566.66371034,0.00014964,2]
[395087685,1764417985591,2663.96261441,0.00014837,2]
[395087686,1764417995065,193.63994782,0.00014963,2]
[395087687,1764418016271,857.01,0.00013699,2]
[395087698,1764418037816,-1128.71817259,0.00014964,2]
[395087699,1764418038251,-2257.43634518,0.00014964,2]
[395087700,1764418038484,-4514.87269036,0.00014964,2]
[395087701,1764418038598,-970.26461928,0.00014964,2]
[395087708,1764418039307,5597.28326555,0.00014964,2]
[395087715,1764418122199,-4187.27649,0.0001501,2]
[395087716,1764418138123,1000.0,0.00014964,2]
[395087728,1764418208149,625.45702,0.00014964,2]
[395087729,1764418208171,1874.54298,0.00014964,2]
[395087737,1764418233056,-259.37800205,0.00015028,2]
[395087738,1764418233065,-195.0,0.00015028,2]
[395087739,1764418233075,-466.7998894,0.00015028,2]
[395087740,1764418233085,-213.0,0.00015028,2]
[395087741,1764418233095,-195.0,0.00015043,2]
[395087742,1764418233104,-161.28905499,0.00015058,2]
[395087743,1764418233113,-267.93,0.00015059,2]
[395087744,1764418233123,-151.0,0.00015061,2]
[395087745,1764418233387,-606.0,0.00015062,2]
[395087746,1764418233489,-98.61305356,0.00015062,2]
[395087747,1764418233576,-201.38694644,0.00015062,2]
[395087748,1764418233586,-1200.0,0.00015062,2]
[395087749,1764418233596,-500.0,0.00015063,2]
[395087750,1764418233605,-320.8262572,0.00015063,2]
[395087751,1764418233615,-500.0,0.00015063,2]
[395087752,1764418233624,-217.02017976,0.00015063,2]
[395087753,1764418233636,-56.27480206,0.00015063,2]
[395087754,1764418233646,-518.40923525,0.00015063,2]
[395087755,1764418233655,-483.80776979,0.00015063,2]
[395087756,1764418233665,-500.0,0.00015063,2]
[395087757,1764418233674,-500.0,0.00015063,2]
[395087758,1764418233683,-256.12923318,0.00015063,2]
[395087759,1764418233693,-153.66803778,0.00015063,2]
[395087760,1764418233703,-500.0,0.00015063,2]
[395087761,1764418233712,-500.0,0.00015063,2]
[395087762,1764418233722,-500.0,0.00015063,2]
[395087763,1764418233731,-500.0,0.00015063,2]
[395087764,1764418233740,-500.0,0.00015063,2]
[395087765,1764418233750,-500.0,0.00015063,2]
[395087766,1764418233759,-500.0,0.00015063,2]
[395087767,1764418233769,-500.0,0.00015063,2]
[395087768,1764418233778,-500.0,0.00015063,2]
[395087769,1764418233788,-500.0,0.00015063,2]
[395087770,1764418233797,-500.0,0.00015063,2]
[395087771,1764418233807,-500.0,0.00015063,2]
[395087772,1764418233816,-500.0,0.00015063,2]
[395087773,1764418233826,-500.0,0.00015063,2]
[395087774,1764418233835,-523.15864503,0.00015063,2]
[395087775,1764418233844,-500.0,0.00015063,2]
[395087776,1764418233853,-500.0,0.00015063,2]
[395087777,1764418233862,-500.0,0.00015063,2]
[395087778,1764418233871,-500.0,0.00015063,2]
[395087779,1764418233881,-500.0,0.00015063,2]
[395087780,1764418233891,-592.30545286,0.00015063,2]
[395087781,1764418233901,-13017.8532,0.00015064,2]
[395087782,1764418233910,-4955.14201078,0.00015064,2]
[395087783,1764418234448,495.83074653,0.00014964,2]
[395087788,1764418241229,-600.0,0.00015064,2]
[395087789,1764418241238,-557.83394336,0.00015064,2]
[395087790,1764418241306,-868.80017451,0.00015064,2]
[395087795,1764418246535,-590.20132732,0.00015064,2]
[395087796,1764418248763,-277.78559196,0.00015064,2]
[395087797,1764418248774,-437.735,0.00015064,2]
[395087798,1764418248886,-4156.83662609,0.00015064,2]
[395087879,1764418288527,7629.63627347,0.00014964,2]
[395087880,1764418288549,10000.01,0.00014964,2]
[395087881,1764418288571,4800.60212653,0.00014964,2]
[395087883,1764418291511,999.0,0.00014765,3]
[395087891,1764418294532,2545.97,0.00014763,2]
[395087892,1764418294990,165.166,0.00014763,2]
[395087917,1764418366359,245.7626,0.00014964,2]
[395087918,1764418371235,1243.50927347,0.00014964,2]
[395087919,1764418371257,1256.49072653,0.00014964,2]
[395087973,1764418418706,7451.76267979,0.00014964,2]
[395087974,1764418462756,1291.75659368,0.0001427,2]
[395087975,1764418462778,4615.39340632,0.0001427,2]
[395087976,1764418476117,838.25101,0.0001501,2]
[395087977,1764418486725,946.15,0.00013699,2]
[395087978,1764418512640,3600.21558368,0.00014964,2]
[395087979,1764418512665,1025.84811632,0.00014964,2]
[395087980,1764418513795,488.15479209,0.00014964,2]
[395087981,1764418516650,200.0,0.0001422,2]
[395087982,1764418519608,2500.0,0.00014964,2]
[395087983,1764418537325,5786.00709159,0.00014964,2]
[395087984,1764418537350,2663.71282888,0.00014964,2]
[395087985,1764418564191,1600.0,0.0001423,2]
[395087986,1764418568083,195.0,0.00014642,2]
[395087987,1764418635937,-161.28905499,0.00014964,2]
[395087988,1764418697327,-250.0,0.00014964,2]
[395087989,1764418712054,-212.0,0.00014964,2]
[395087990,1764418725282,-578.80653496,0.00014964,2]
[395087991,1764418741019,-221.19346504,0.00014964,2]
[395087992,1764418745184,-4636.57548442,0.00014964,2]
[395087993,1764418745263,-10000.01,0.00014964,2]
[395087994,1764418745351,-3212.15551558,0.00014964,2]
[395087995,1764418745360,-2500.0,0.00014964,2]
[395087996,1764418750724,300.0,0.00014963,2]
[395087997,1764418777266,161.28905499,0.00014964,2]
[395087998,1764418803403,3189.54,7.091e-05,2]
[395087999,1764418803592,3189.54,7.464e-05,2]
[395088000,1764418803673,3189.54,7.837e-05,2]
[395088001,1764418803893,270.10094501,8.211e-05,2]
[395088002,1764418803916,2919.43905499,8.211e-05,2]
[395088003,1764418804364,3189.54,8.584e-05,2]
[395088004,1764418804472,3189.54,8.957e-05,2]
[395088005,1764418804553,701.49094501,9.33e-05,2]
[395088006,1764418804576,2488.04905499,9.33e-05,2]
[395088007,1764418804671,3189.54,9.703e-05,2]
[395088008,1764418804753,3189.54,0.00010077,2]
[395088009,1764418804838,1132.88094501,0.0001045,2]
[395088010,1764418804860,2056.65905499,0.0001045,2]
[395088011,1764418804988,3189.54,0.00010823,2]
[395088012,1764418805068,3189.54,0.00011196,2]
[395088013,1764418806359,427.13544307,0.00014964,2]
[395088014,1764418807692,1137.13550194,0.00014964,2]
[395088015,1764418808051,-222.25445417,0.00014964,2]
[395088016,1764418812686,3189.54,0.00011569,2]
[395088017,1764418813000,3189.54,0.00011943,2]
[395088018,1764418813121,3189.54,0.00012316,2]
[395088019,1764418813252,431.39,0.00012689,2]
[395088020,1764418813274,2758.15,0.00012689,2]
[395088021,1764418813394,3189.54,0.00013062,2]
[395088022,1764418813516,3189.54,0.00013436,2]
[395088023,1764418813656,862.78,0.00013809,2]
[395088024,1764418813678,2326.76,0.00013809,2]
[395088025,1764418813826,3189.54,0.00014182,2]
[395088026,1764418833422,1045.16,0.00014162,2]
[395088027,1764418835398,-303.71381206,0.0001496,2]
[395088028,1764418907889,291.466,0.00014664,2]
[395088029,1764418908032,156.942,0.00014664,2]
[395088032,1764418924979,1000.0,0.00014111,2]
[395088033,1764418927831,1340.01,0.00014111,2]
[395088034,1764418940259,5856.3499,0.00014863,2]
[395088035,1764418953708,235.2676,0.00014863,2]
[395088036,1764418982602,7001.1116,0.00014863,2]
[395088039,1764419064063,7604.74792845,0.00014864,2]
[395088040,1764419106189,-182.63,0.00014864,2]
[395088041,1764419127860,7506.39968949,9e-05,2]
[395088042,1764419128778,-260.19658991,0.00014863,2]
[395088044,1764419130632,-1891.25841009,0.00014863,2]
[395088045,1764419130663,-235.2676,0.00014863,2]
[395088046,1764419130693,-195.0,0.00014864,2]
[395088047,1764419130723,-191.11351266,0.00014864,2]
[395088048,1764419133678,1022.05984194,0.000108,2]
[395088049,1764419139204,166.66,0.00013699,2]
[395088050,1764419139517,166.66,0.00013916,2]
[395088051,1764419139786,166.66,0.00014133,2]
[395088052,1764419140037,166.66,0.0001435,2]
[395088053,1764419140656,166.66,0.00014567,2]
[395088054,1764419140838,166.66,0.00014784,2]
[395088055,1764419141435,274.53084051,0.00014787,2]
[395088056,1764419141456,108.46915949,0.00014787,2]
[395088057,1764419143047,1338.0,0.00014816,2]
[395088058,1764419143165,1672.90195307,0.00014863,2]
[395088059,1764419143188,5103.91174693,0.00014863,2]
[395088060,1764419143690,1735.0,0.00014846,2]
[395088061,1764419146421,-176.0,0.00014918,2]
[395088062,1764419147888,280.8168,0.00014863,2]
[395088063,1764419157808,1000.0,0.00014863,2]
[395088064,1764419159401,8367.1932,0.000146,2]
[395088065,1764419159424,10000.01,0.000146,2]
[395088066,1764419159446,6410.4068,0.000146,2]
[395088070,1764419195287,10000.01,0.00014864,2]
[395088071,1764419195312,1591.32433193,0.00014864,2]
[395088072,1764419213681,2209.7,0.00014124,2]
[395088087,1764419242262,-189.80341009,0.00014954,2]
[395088089,1764419246013,-10.19658991,0.00014954,2]
[395088090,1764419246035,-163.83514386,0.00014954,2]
[395088096,1764419248869,-225.56507546,0.00014954,2]
[395088099,1764419299349,599.52711626,0.0001,2]
[395088113,1764419360898,-242.43492454,0.00014789,2]
[395088153,1764419432360,-210.0,0.00014789,2]
[395088154,1764419432369,-2.05842046,0.00014789,2]
[395088155,1764419432378,-300.0,0.00014862,2]
[395088156,1764419432387,-300.0,0.00014862,2]
[395088157,1764419432396,-953.80537187,0.00014862,2]
[395088158,1764419432489,-246.19462813,0.00014862,2]
[395088159,1764419432498,-411.99839891,0.00014863,2]
[395088160,1764419432508,-1000.0,0.00014863,2]
[395088161,1764419432517,-7125.3788,0.00014863,2]
[395088162,1764419432526,-1098.9462,0.00014863,2]
[395088163,1764419432536,-1175.31110549,0.00014864,2]
[395088164,1764419432545,-151.0,0.0001495,2]
[395088165,1764419432554,-151.0,0.00014951,2]
[395088166,1764419432564,-91.21671726,0.00014952,2]
[395088167,1764419432575,-58.78328274,0.00014952,2]
[395088168,1764419432584,-1200.0,0.00014953,2]
[395088169,1764419432593,-500.0,0.00014953,2]
[395088170,1764419432602,-500.0,0.00014953,2]
[395088171,1764419432611,-211.53551925,0.00014953,2]
[395088172,1764419432621,-197.50363265,0.00014953,2]
[395088173,1764419432630,-500.0,0.00014953,2]
[395088174,1764419432639,-500.0,0.00014953,2]
[395088175,1764419432648,-500.0,0.00014953,2]
[395088176,1764419432657,-269.4437741,0.00014953,2]
[395088177,1764419432668,-500.0,0.00014953,2]
[395088178,1764419432677,-785.39611538,0.00014953,2]
[395088179,1764419432686,-500.0,0.00014953,2]
[395088180,1764419432695,-200.0,0.00014953,2]
[395088181,1764419432704,-785.39611538,0.00014953,2]
[395088182,1764419432714,-207.23531683,0.00014953,2]
[395088183,1764419432723,-500.0,0.00014953,2]
[395088184,1764419432732,-500.0,0.00014953,2]
[395088185,1764419432741,-785.39611538,0.00014953,2]
[395088186,1764419432750,-500.0,0.00014953,2]
[395088187,1764419432759,-500.0,0.00014953,2]
[395088188,1764419432769,-785.39611538,0.00014953,2]
[395088189,1764419432778,-500.0,0.00014953,2]
[395088190,1764419432787,-785.39611538,0.00014953,2]
[395088191,1764419432796,-785.39611538,0.00014953,2]
[395088192,1764419432805,-785.39611538,0.00014953,2]
[395088193,1764419432815,-500.0,0.00014953,2]
[395088194,1764419432824,-785.39611538,0.00014953,2]
[395088195,1764419432834,-785.39611538,0.00014953,2]
[395088196,1764419432843,-500.0,0.00014953,2]
[395088197,1764419432852,-785.39611538,0.00014953,2]
[395088198,1764419432861,-785.39611538,0.00014953,2]
[395088199,1764419432870,-785.39611538,0.00014953,2]
[395088200,1764419432880,-785.39611538,0.00014953,2]
[395088201,1764419432889,-785.39611538,0.00014953,2]
[395088202,1764419432898,-121.61250835,0.00014953,2]
[395088203,1764419432910,-333.30653703,0.00014953,2]
[395088204,1764419432933,-330.47707,0.00014953,2]
[395088205,1764419432942,-785.39611538,0.00014953,2]
[395088206,1764419432952,-785.39611538,0.00014953,2]
[395088207,1764419433268,-785.39611538,0.00014953,2]
[395088208,1764419433297,-785.39611538,0.00014953,2]
[395088209,1764419433307,-712.88934698,0.00014953,2]
[395088210,1764419433354,-72.5067684,0.00014953,2]
[395088211,1764419433364,-785.39611538,0.00014953,2]
[395088212,1764419433374,-785.39611538,0.00014953,2]
[395088213,1764419433384,-785.39611538,0.00014953,2]
[395088214,1764419433394,-785.39611538,0.00014953,2]
[395088215,1764419433403,-785.39611538,0.00014953,2]
[395088216,1764419433412,-785.39611538,0.00014953,2]
[395088217,1764419433422,-785.39611538,0.00014953,2]
[395088218,1764419433431,-785.39611538,0.00014953,2]
[395088219,1764419433440,-785.39611538,0.00014953,2]
[395088220,1764419433449,-785.39611538,0.00014953,2]
[395088221,1764419433458,-785.39611538,0.00014953,2]
[395088222,1764419433467,-785.39611538,0.00014953,2]
[395088223,1764419433476,-785.39611538,0.00014953,2]
[395088224,1764419433485,-785.39611538,0.00014953,2]
[395088225,1764419433494,-785.39611538,0.00014953,2]
[395088226,1764419433503,-785.39611538,0.00014953,2]
[395088227,1764419433513,-785.39611538,0.00014953,2]
[395088228,1764419433522,-785.39611538,0.00014953,2]
[395088229,1764419433532,-785.39611538,0.00014953,2]
[395088230,1764419433541,-785.39611538,0.00014953,2]
[395088231,1764419433550,-785.39611538,0.00014953,2]
[395088232,1764419433560,-785.39611538,0.00014953,2]
[395088233,1764419433569,-785.39611538,0.00014953,2]
[395088234,1764419433578,-785.39611538,0.00014953,2]
[395088235,1764419433587,-785.39611538,0.00014953,2]
[395088236,1764419433596,-785.39611538,0.00014953,2]
[395088237,1764419433605,-785.39611538,0.00014953,2]
[395088238,1764419433615,-785.39611538,0.00014953,2]
[395088239,1764419433624,-785.39611538,0.00014953,2]
[395088240,1764419433633,-785.39611538,0.00014953,2]
[395088241,1764419433642,-785.39611538,0.00014953,2]
[395088242,1764419433651,-785.39611538,0.00014953,2]
[395088243,1764419433661,-785.39611538,0.00014953,2]
[395088244,1764419433669,-785.39611538,0.00014953,2]
[395088245,1764419433679,-785.39611538,0.00014953,2]
[395088246,1764419433688,-785.39611538,0.00014953,2]
[395088247,1764419433698,-785.39611538,0.00014953,2]
[395088248,1764419433707,-785.39611538,0.00014953,2]
[395088249,1764419433716,-785.39611538,0.00014953,2]
[395088250,1764419433726,-779.97959044,0.00014953,2]
[395088251,1764419433735,-779.97959044,0.00014953,2]
[395088252,1764419433744,-779.97959044,0.00014953,2]
[395088253,1764419433753,-779.97959044,0.00014953,2]
[395088254,1764419433762,-167.73066667,0.00014953,2]
[395088255,1764419433773,-262.74697408,0.00014953,2]
[395088256,1764419433789,-349.50194969,0.00014953,2]
[395088257,1764419433798,-649.49805031,0.00014953,2]
[395088258,1764419433811,-130.48154013,0.00014953,2]
[395088259,1764419433820,-414.71140241,0.00014953,2]
[395088260,1764419433830,-317.20680857,0.00014953,2]
[395088308,1764419439931,-48.06137946,0.00014953,2]
[395088310,1764419439941,-601.93862054,0.00014953,2]
[395088312,1764419440000,-178.0409699,0.00014953,2]
[395088313,1764419440009,-779.97959044,0.00014953,2]
[395088314,1764419440018,-779.97959044,0.00014953,2]
[395088315,1764419440027,-779.97959044,0.00014953,2]
[395088316,1764419440041,-779.97959044,0.00014953,2]
[395088317,1764419440050,-779.97959044,0.00014953,2]
[395088318,1764419440059,-779.97959044,0.00014953,2]
[395088319,1764419440067,-779.97959044,0.00014953,2]
[395088320,1764419440078,-779.97959044,0.00014953,2]
[395088321,1764419440087,-779.97959044,0.00014953,2]
[395088322,1764419440096,-779.97959044,0.00014953,2]
[395088323,1764419440106,-779.97959044,0.00014953,2]
[395088324,1764419440116,-779.97959044,0.00014953,2]
[395088325,1764419440125,-779.97959044,0.00014953,2]
[395088326,1764419440134,-779.97959044,0.00014953,2]
[395088327,1764419440143,-779.97959044,0.00014953,2]
[395088328,1764419440152,-779.97959044,0.00014953,2]
[395088329,1764419440161,-779.97959044,0.00014953,2]
[395088330,1764419440170,-567.11295093,0.00014953,2]
[395088331,1764419440181,-212.86663951,0.00014953,2]
[395088332,1764419440191,-779.97959044,0.00014953,2]
[395088333,1764419440200,-779.97959044,0.00014953,2]
[395088334,1764419440210,-779.97959044,0.00014953,2]
[395088335,1764419440219,-151.0,0.00014954,2]
[395088336,1764419440228,-408.871115,0.00014954,2]
[395088337,1764419440236,-1523.553465,0.00014954,2]
[395088338,1764419440245,-408.871115,0.00014954,2]
[395088339,1764419440254,-151.0,0.00014954,2]
[395088340,1764419440263,-1523.553465,0.00014954,2]
[395088341,1764419440272,-408.871115,0.00014954,2]
[395088342,1764419440281,-151.0,0.00014954,2]
[395088343,1764419440290,-1523.553465,0.00014954,2]
[395088344,1764419440299,-408.871115,0.00014954,2]
[395088345,1764419440308,-151.0,0.00014954,2]